fUST/lending_fUST_20240112
["ID","MTS","AMOUNT","RATE_DAILY","PERIOD"]
[311238437,1704989455277,-500.0,0.00030958,2]
[311238438,1704989455286,-500.0,0.00030958,2]
[311238439,1704989455295,-500.0,0.00030958,2]
[311238440,1704989455304,-3471.65,0.00030958,2]
[311238441,1704989455314,-1579.25,0.00030958,2]
[311238442,1704989455323,-500.0,0.00030958,2]
[311238443,1704989455332,-500.0,0.00030958,2]
[311238444,1704989455342,-504.47013511,0.00030958,2]
[311238445,1704989455351,-500.0,0.00030958,2]
[311238446,1704989455361,-666.25,0.00030958,2]
[311238447,1704989455370,-500.0,0.00030958,2]
[311238448,1704989455379,-824.38,0.00030958,2]
[311238449,1704989455389,-500.0,0.00030958,2]
[311238450,1704989455398,-1052.02,0.00030958,2]
[311238451,1704989455407,-500.0,0.00030958,2]
[311238452,1704989455417,-652.36,0.00030958,2]
[311238453,1704989455428,-508.3824715,0.00030958,2]
[311238454,1704989455437,-150.88778826,0.00030958,2]
[311238455,1704989455446,-500.0,0.00030958,2]
[311238456,1704989455455,-500.0,0.00030958,2]
[311238457,1704989455465,-500.0,0.00030958,2]
[311238458,1704989455474,-500.0,0.00030958,2]
[311238459,1704989455483,-1048.31,0.00030958,2]
[311238460,1704989455492,-862.28,0.00030958,2]
[311238461,1704989455502,-10599.06,0.00030958,2]
[311238462,1704989455512,-1310.29,0.00030958,2]
[311238463,1704989455521,-618.92361801,0.00030958,2]
[311238464,1704989455531,-500.0,0.00030958,2]
[311238465,1704989455541,-235.71792542,0.00030958,2]
[311238466,1704989455550,-500.0,0.00030958,2]
[311238467,1704989455561,-909.41,0.00030958,2]
[311238468,1704989455571,-2138.68,0.00030958,2]
[311238469,1704989455581,-500.0,0.00030958,2]
[311238470,1704989455591,-500.0,0.00030958,2]
[311238471,1704989455600,-500.0,0.00030958,2]
[311238472,1704989455610,-500.0,0.00030958,2]
[311238473,1704989455619,-500.0,0.00030958,2]
[311238474,1704989455629,-500.0,0.00030958,2]
[311238475,1704989455638,-509.19232355,0.00030958,2]
[311238476,1704989455648,-500.0,0.00030958,2]
[311238477,1704989455657,-500.0,0.00030958,2]
[311238478,1704989455667,-1044.05,0.00030958,2]
[311238479,1704989455680,-500.0,0.00030958,2]
[311238480,1704989455691,-500.0,0.00030958,2]
[311238481,1704989455700,-511.47851661,0.00030958,2]
[311238482,1704989455710,-500.0,0.00030958,2]
[311238483,1704989455719,-500.0,0.00030958,2]
[311238484,1704989455729,-500.0,0.00030958,2]
[311238485,1704989455738,-500.0,0.00030958,2]
[311238486,1704989455748,-500.0,0.00030958,2]
[311238487,1704989455758,-209.58951004,0.00030958,2]
[311238488,1704989455768,-767.81,0.00030958,2]
[311238489,1704989455778,-2163.45,0.00030958,2]
[311238490,1704989455787,-3391.32,0.00030958,2]
[311238491,1704989455797,-16109.12,0.00030958,2]
[311238492,1704989455806,-5989.25,0.00030958,2]
[311238493,1704989455816,-151.0,0.00030958,2]
[311238494,1704989455825,-151.0,0.00030958,2]
[311238495,1704989455835,-759.23116607,0.00030958,2]
[311238496,1704989455847,-264.64609693,0.00030958,2]
[311238497,1704989455857,-1023.87726242,0.00030958,2]
[311238498,1704989455866,-27408.70956166,0.00031,4]
[311238499,1704989455876,-555.71650941,0.00031232,2]
[311238500,1704989455889,-500.0,0.00031232,2]
[311238501,1704989455898,-500.0,0.00031232,2]
[311238502,1704989455973,-500.0,0.00031232,2]
[311238503,1704989455983,-500.0,0.00031232,2]
[311238504,1704989455992,-500.0,0.00031232,2]
[311238505,1704989456002,-500.0,0.00031232,2]
[311238506,1704989456011,-500.0,0.00031232,2]
[311238507,1704989456021,-500.0,0.00031232,2]
[311238508,1704989456030,-527.90013105,0.00031232,2]
[311238509,1704989456040,-500.0,0.00031232,2]
[311238510,1704989456049,-500.0,0.00031232,2]
[311238511,1704989456059,-500.0,0.00031232,2]
[311238512,1704989456069,-500.0,0.00031232,2]
[311238513,1704989456078,-1075.73,0.00031232,2]
[311238514,1704989456087,-500.0,0.00031232,2]
[311238515,1704989456097,-500.0,0.00031232,2]
[311238516,1704989456106,-500.0,0.00031232,2]
[311238517,1704989456116,-500.0,0.00031232,2]
[311238518,1704989456125,-388.5668798,0.00031232,2]
[311238519,1704989456135,-500.0,0.00031232,2]
[311238520,1704989456145,-500.0,0.00031232,2]
[311238521,1704989456155,-500.0,0.00031232,2]
[311238522,1704989456164,-502.86019974,0.00031232,2]
[311238523,1704989456177,-500.0,0.00031232,2]
[311238524,1704989456186,-500.0,0.00031232,2]
[311238525,1704989456196,-500.0,0.00031232,2]
[311238526,1704989456208,-500.0,0.00031232,2]
[311238527,1704989456217,-500.0,0.00031232,2]
[311238528,1704989456226,-500.0,0.00031232,2]
[311238529,1704989456235,-500.0,0.00031232,2]
[311238530,1704989456244,-500.0,0.00031232,2]
[311238531,1704989456253,-500.0,0.00031232,2]
[311238532,1704989456262,-910.6,0.00031232,2]
[311238533,1704989456271,-500.0,0.00031232,2]
[311238534,1704989456280,-500.0,0.00031232,2]
[311238535,1704989456290,-500.0,0.00031232,2]
[311238536,1704989456299,-500.0,0.00031232,2]
[311238537,1704989456308,-732.55,0.00031232,2]
[311238538,1704989456319,-166.98600418,0.00031232,2]
[311238539,1704989456328,-541.8,0.00031232,2]
[311238540,1704989456338,-500.0,0.00031232,2]
[311238541,1704989456347,-500.0,0.00031232,2]
[311238542,1704989456356,-500.0,0.00031232,2]
[311238543,1704989456366,-500.0,0.00031232,2]
[311238544,1704989456375,-506.90543872,0.00031232,2]
[311238545,1704989456384,-1805.23,0.00031232,2]
[311238546,1704989456393,-500.0,0.00031232,2]
[311238547,1704989456402,-500.0,0.00031232,2]
[311238548,1704989456412,-500.0,0.00031232,2]
[311238549,1704989456426,-500.0,0.00031232,2]
[311238550,1704989456435,-500.0,0.00031232,2]
[311238551,1704989456444,-500.0,0.00031232,2]
[311238552,1704989456454,-1149.22,0.00031232,2]
[311238553,1704989456465,-400.39717133,0.00031232,2]
[311238554,1704989456474,-500.0,0.00031232,2]
[311238555,1704989456483,-500.0,0.00031232,2]
[311238556,1704989456494,-500.0,0.00031232,2]
[311238557,1704989456504,-503.56762293,0.00031232,2]
[311238558,1704989456513,-500.0,0.00031232,2]
[311238559,1704989456522,-500.0,0.00031232,2]
[311238560,1704989456533,-500.0,0.00031232,2]
[311238561,1704989456542,-500.0,0.00031232,2]
[311238562,1704989456551,-500.0,0.00031232,2]
[311238563,1704989456561,-500.0,0.00031232,2]
[311238564,1704989456571,-500.0,0.00031232,2]
[311238565,1704989456580,-500.0,0.00031232,2]
[311238566,1704989456590,-502.49238258,0.00031232,2]
[311238567,1704989456599,-500.0,0.00031232,2]
[311238568,1704989456608,-791.83,0.00031232,2]
[311238569,1704989456617,-500.0,0.00031232,2]
[311238570,1704989456627,-603.37503213,0.00031232,2]
[311238571,1704989456636,-500.0,0.00031232,2]
[311238572,1704989456645,-500.0,0.00031232,2]
[311238573,1704989456654,-657.31,0.00031232,2]
[311238574,1704989456663,-362.62491012,0.00031232,2]
[311238575,1704989456676,-502.55761513,0.00031232,2]
[311238576,1704989456686,-500.0,0.00031232,2]
[311238577,1704989456695,-361.23136847,0.00031232,2]
[311238578,1704989456705,-500.0,0.00031232,2]
[311238579,1704989456714,-500.0,0.00031232,2]
[311238580,1704989456723,-500.0,0.00031232,2]
[311238581,1704989456732,-500.0,0.00031232,2]
[311238582,1704989456741,-500.0,0.00031232,2]
[311238583,1704989456751,-500.0,0.00031232,2]
[311238584,1704989456760,-851.22,0.00031232,2]
[311238585,1704989456769,-500.0,0.00031232,2]
[311238586,1704989456779,-500.0,0.00031232,2]
[311238587,1704989456789,-752.58,0.00031232,2]
[311238588,1704989456799,-500.0,0.00031232,2]
[311238589,1704989456809,-500.0,0.00031232,2]
[311238590,1704989456818,-516.58930631,0.00031232,2]
[311238591,1704989456828,-500.0,0.00031232,2]
[311238592,1704989456837,-500.0,0.00031232,2]
[311238593,1704989456847,-500.0,0.00031232,2]
[311238594,1704989456856,-500.0,0.00031232,2]
[311238595,1704989456865,-2622.01,0.00031232,2]
[311238596,1704989456874,-500.0,0.00031232,2]
[311238597,1704989456884,-500.0,0.00031232,2]
[311238598,1704989456897,-538.97228615,0.00031232,2]
[311238599,1704989456906,-177.53076962,0.00031232,2]
[311238600,1704989456915,-500.0,0.00031232,2]
[311238601,1704989456928,-503.81039815,0.00031232,2]
[311238602,1704989456938,-500.0,0.00031232,2]
[311238603,1704989456948,-3471.65,0.00031232,2]
[311238604,1704989456957,-1579.25,0.00031232,2]
[311238605,1704989456967,-500.0,0.00031232,2]
[311238606,1704989456976,-500.0,0.00031232,2]
[311238607,1704989456985,-500.0,0.00031232,2]
[311238608,1704989456995,-666.25,0.00031232,2]
[311238609,1704989457005,-500.0,0.00031232,2]
[311238610,1704989457014,-824.38,0.00031232,2]
[311238611,1704989457024,-500.0,0.00031232,2]
[311238612,1704989457034,-1052.02,0.00031232,2]
[311238613,1704989457044,-500.0,0.00031232,2]
[311238614,1704989457054,-652.36,0.00031232,2]
[311238615,1704989457063,-500.0,0.00031232,2]
[311238616,1704989457074,-500.0,0.00031232,2]
[311238617,1704989457091,-500.0,0.00031232,2]
[311238618,1704989457101,-500.0,0.00031232,2]
[311238619,1704989457111,-1048.31,0.00031232,2]
[311238620,1704989457121,-862.28,0.00031232,2]
[311238621,1704989457130,-10599.06,0.00031232,2]
[311238622,1704989457140,-1310.29,0.00031232,2]
[311238623,1704989457149,-500.0,0.00031232,2]
[311238624,1704989457159,-500.0,0.00031232,2]
[311238625,1704989457168,-909.41,0.00031232,2]
[311238626,1704989457185,-2138.68,0.00031232,2]
[311238627,1704989457195,-500.0,0.00031232,2]
[311238628,1704989457204,-497.30825784,0.00031232,2]
[311238629,1704989457214,-500.0,0.00031232,2]
[311238630,1704989457224,-500.0,0.00031232,2]
[311238631,1704989457234,-500.0,0.00031232,2]
[311238632,1704989457245,-500.0,0.00031232,2]
[311238633,1704989457255,-500.0,0.00031232,2]
[311238634,1704989457266,-500.0,0.00031232,2]
[311238635,1704989457282,-1044.05,0.00031232,2]
[311238636,1704989457365,-509.69535594,0.00031232,2]
[311238637,1704989457375,-500.0,0.00031232,2]
[311238638,1704989457386,-500.0,0.00031232,2]
[311238639,1704989457397,-500.0,0.00031232,2]
[311238640,1704989457409,-500.0,0.00031232,2]
[311238641,1704989457420,-500.0,0.00031232,2]
[311238642,1704989457438,-500.0,0.00031232,2]
[311238643,1704989457449,-767.81,0.00031232,2]
[311238644,1704989457460,-2163.45,0.00031232,2]
[311238645,1704989457470,-3391.32,0.00031232,2]
[311238646,1704989457480,-16109.12,0.00031232,2]
[311238647,1704989457490,-5989.25,0.00031232,2]
[311238648,1704989457499,-151.0,0.00031232,2]
[311238649,1704989457508,-272.20767046,0.00031232,2]
[311238650,1704989457517,-16713.18548471,0.000313,7]
[311238651,1704989458040,-594.07215949,0.00013262,2]
[311238652,1704989458051,-2755.92784551,0.00013262,2]
[311238653,1704989458063,-5864.37463392,0.00013262,2]
[311238654,1704989458079,-2609.99999991,0.00013262,2]
[311238655,1704989458215,-12514.95979649,0.00013262,2]
[311238656,1704989458227,-13150.60236049,0.00013262,2]
[311238657,1704989458237,-253.60420254,0.00013262,2]
[311238658,1704989458246,-155.01550155,0.00019923,2]
[311238659,1704989458256,-250.0,0.00019924,2]
[311238660,1704989458265,-23703.79145111,0.000313,7]
[311238661,1704989458274,-151.0,0.0003135,2]
[311238662,1704989458283,-5000.0,0.00031465,2]
[311238663,1704989458293,-5000.0,0.00031469,2]
[311238664,1704989458302,-151.0,0.00031469,2]
[311238665,1704989458311,-5000.0,0.00031475,2]
[311238666,1704989458320,-1079.22,0.00031488,2]
[311238667,1704989458329,-5000.0,0.0003149,2]
[311238668,1704989458338,-5000.0,0.00031491,2]
[311238669,1704989458348,-5000.0,0.00031499,2]
[311238670,1704989458358,-5000.0,0.00031505,2]
[311238671,1704989458367,-500.0,0.00031506,2]
[311238672,1704989458377,-500.0,0.00031506,2]
[311238673,1704989458387,-500.0,0.00031506,2]
[311238674,1704989458396,-611.8492758,0.00031506,2]
[311238675,1704989458406,-500.0,0.00031506,2]
[311238676,1704989458414,-500.0,0.00031506,2]
[311238677,1704989458428,-500.0,0.00031506,2]
[311238678,1704989458445,-500.0,0.00031506,2]
[311238679,1704989458459,-195.92341211,0.00031506,2]
[311238680,1704989458469,-1075.73,0.00031506,2]
[311238681,1704989458478,-500.0,0.00031506,2]
[311238682,1704989458488,-500.0,0.00031506,2]
[311238683,1704989458498,-500.0,0.00031506,2]
[311238684,1704989458507,-500.0,0.00031506,2]
[311238685,1704989458517,-500.0,0.00031506,2]
[311238686,1704989458527,-500.0,0.00031506,2]
[311238687,1704989458537,-500.0,0.00031506,2]
[311238688,1704989458547,-500.0,0.00031506,2]
[311238689,1704989458557,-500.0,0.00031506,2]
[311238690,1704989458567,-500.0,0.00031506,2]
[311238691,1704989458577,-574.30974102,0.00031506,2]
[311238692,1704989458587,-500.0,0.00031506,2]
[311238693,1704989458597,-500.0,0.00031506,2]
[311238694,1704989458606,-502.14369668,0.00031506,2]
[311238695,1704989458616,-500.0,0.00031506,2]
[311238696,1704989458625,-910.6,0.00031506,2]
[311238697,1704989458636,-500.0,0.00031506,2]
[311238698,1704989458645,-500.0,0.00031506,2]
[311238699,1704989458655,-500.0,0.00031506,2]
[311238700,1704989458776,-500.0,0.00031506,2]
[311238701,1704989458786,-732.55,0.00031506,2]
[311238702,1704989458797,-541.8,0.00031506,2]
[311238703,1704989458808,-500.0,0.00031506,2]
[311238704,1704989458817,-500.0,0.00031506,2]
[311238705,1704989458827,-500.0,0.00031506,2]
[311238706,1704989458837,-500.0,0.00031506,2]
[311238707,1704989458847,-1805.23,0.00031506,2]
[311238708,1704989458857,-500.0,0.00031506,2]
[311238709,1704989458866,-506.26562058,0.00031506,2]
[311238710,1704989458876,-500.0,0.00031506,2]
[311238711,1704989458889,-500.0,0.00031506,2]
[311238712,1704989458898,-500.0,0.00031506,2]
[311238713,1704989458907,-309.91204737,0.00031506,2]
[311238714,1704989458916,-1149.22,0.00031506,2]
[311238715,1704989458931,-500.0,0.00031506,2]
[311238716,1704989458941,-500.0,0.00031506,2]
[311238717,1704989458950,-500.0,0.00031506,2]
[311238718,1704989458959,-450.90133787,0.00031506,2]
[311238719,1704989458968,-500.0,0.00031506,2]
[311238720,1704989458977,-504.82233197,0.00031506,2]
[311238721,1704989458986,-500.0,0.00031506,2]
[311238722,1704989458996,-500.0,0.00031506,2]
[311238723,1704989459005,-500.0,0.00031506,2]
[311238724,1704989459014,-502.28601672,0.00031506,2]
[311238725,1704989459023,-500.0,0.00031506,2]
[311238726,1704989459032,-500.0,0.00031506,2]
[311238727,1704989459041,-791.83,0.00031506,2]
[311238728,1704989459050,-500.0,0.00031506,2]
[311238729,1704989459059,-500.0,0.00031506,2]
[311238730,1704989459068,-505.70056427,0.00031506,2]
[311238731,1704989459077,-657.31,0.00031506,2]
[311238732,1704989459087,-214.69259713,0.00031506,2]
[311238733,1704989459096,-500.0,0.00031506,2]
[311238734,1704989459105,-500.0,0.00031506,2]
[311238735,1704989459114,-500.0,0.00031506,2]
[311238736,1704989459123,-500.0,0.00031506,2]
[311238737,1704989459132,-500.0,0.00031506,2]
[311238738,1704989459141,-500.0,0.00031506,2]
[311238739,1704989459150,-851.22,0.00031506,2]
[311238740,1704989459160,-500.0,0.00031506,2]
[311238741,1704989459169,-500.0,0.00031506,2]
[311238742,1704989459184,-752.58,0.00031506,2]
[311238743,1704989459193,-500.0,0.00031506,2]
[311238744,1704989459202,-500.0,0.00031506,2]
[311238745,1704989459212,-500.0,0.00031506,2]
[311238746,1704989459221,-500.0,0.00031506,2]
[311238747,1704989459230,-500.0,0.00031506,2]
[311238748,1704989459239,-500.0,0.00031506,2]
[311238749,1704989459248,-2622.01,0.00031506,2]
[311238750,1704989459258,-500.0,0.00031506,2]
[311238751,1704989459267,-500.0,0.00031506,2]
[311238752,1704989459276,-500.0,0.00031506,2]
[311238753,1704989459285,-500.0,0.00031506,2]
[311238754,1704989459294,-3471.65,0.00031506,2]
[311238755,1704989459306,-1579.25,0.00031506,2]
[311238756,1704989459326,-500.0,0.00031506,2]
[311238757,1704989459337,-500.0,0.00031506,2]
[311238758,1704989459345,-500.0,0.00031506,2]
[311238759,1704989459355,-666.25,0.00031506,2]
[311238760,1704989459364,-224.15169513,0.00031506,2]
[311238761,1704989459373,-824.38,0.00031506,2]
[311238762,1704989459382,-500.0,0.00031506,2]
[311238763,1704989459392,-1052.02,0.00031506,2]
[311238764,1704989459401,-500.0,0.00031506,2]
[311238765,1704989459410,-652.36,0.00031506,2]
[311238766,1704989459419,-500.0,0.00031506,2]
[311238767,1704989459434,-500.0,0.00031506,2]
[311238768,1704989459443,-500.0,0.00031506,2]
[311238769,1704989459452,-575.94595443,0.00031506,2]
[311238770,1704989459461,-1048.31,0.00031506,2]
[311238771,1704989459470,-862.28,0.00031506,2]
[311238772,1704989459479,-10599.06,0.00031506,2]
[311238773,1704989459489,-1310.29,0.00031506,2]
[311238774,1704989459498,-500.0,0.00031506,2]
[311238775,1704989459507,-505.08987591,0.00031506,2]
[311238776,1704989459516,-909.41,0.00031506,2]
[311238777,1704989459526,-2138.68,0.00031506,2]
[311238778,1704989459536,-500.0,0.00031506,2]
[311238779,1704989459545,-500.0,0.00031506,2]
[311238780,1704989459555,-500.0,0.00031506,2]
[311238781,1704989459564,-500.0,0.00031506,2]
[311238782,1704989459573,-500.0,0.00031506,2]
[311238783,1704989459582,-500.0,0.00031506,2]
[311238784,1704989459591,-500.0,0.00031506,2]
[311238785,1704989459601,-1044.05,0.00031506,2]
[311238786,1704989459610,-500.0,0.00031506,2]
[311238787,1704989459619,-500.0,0.00031506,2]
[311238788,1704989459629,-500.0,0.00031506,2]
[311238789,1704989459638,-500.0,0.00031506,2]
[311238790,1704989459648,-500.0,0.00031506,2]
[311238791,1704989459658,-500.0,0.00031506,2]
[311238792,1704989459667,-767.81,0.00031506,2]
[311238793,1704989459680,-2163.45,0.00031506,2]
[311238794,1704989459689,-3391.32,0.00031506,2]
[311238795,1704989459698,-16109.12,0.00031506,2]
[311238796,1704989459708,-5989.25,0.00031506,2]
[311238797,1704989459717,-1546.35,0.00031511,2]
[311238798,1704989459726,-300.0,0.000316,15]
[311238799,1704989459735,-1000.0,0.00031626,7]
[311238800,1704989459745,-200.0,0.000317,4]
[311238801,1704989459755,-157.00088552,0.000317,7]
[311238802,1704989459764,-151.0,0.0003178,2]
[311238803,1704989459774,-570.73330876,0.0003178,2]
[311238804,1704989459783,-500.0,0.0003178,2]
[311238805,1704989459792,-500.0,0.0003178,2]
[311238806,1704989459802,-500.0,0.0003178,2]
[311238807,1704989459810,-500.0,0.0003178,2]
[311238808,1704989459820,-500.0,0.0003178,2]
[311238809,1704989459829,-1075.73,0.0003178,2]
[311238810,1704989459838,-500.0,0.0003178,2]
[311238811,1704989459847,-500.0,0.0003178,2]
[311238812,1704989459856,-334.94743682,0.0003178,2]
[311238813,1704989459865,-500.0,0.0003178,2]
[311238814,1704989459874,-500.0,0.0003178,2]
[311238815,1704989459886,-500.70190223,0.0003178,2]
[311238816,1704989459896,-500.0,0.0003178,2]
[311238817,1704989459906,-500.0,0.0003178,2]
[311238818,1704989459976,-500.0,0.0003178,2]
[311238819,1704989459985,-500.0,0.0003178,2]
[311238820,1704989459995,-503.79852842,0.0003178,2]
[311238821,1704989460005,-500.0,0.0003178,2]
[311238822,1704989460014,-500.0,0.0003178,2]
[311238823,1704989460023,-910.6,0.0003178,2]
[311238824,1704989460031,-500.0,0.0003178,2]
[311238825,1704989460041,-500.0,0.0003178,2]
[311238826,1704989460050,-500.0,0.0003178,2]
[311238827,1704989460059,-500.0,0.0003178,2]
[311238828,1704989460069,-732.55,0.0003178,2]
[311238829,1704989460078,-541.8,0.0003178,2]
[311238830,1704989460087,-500.0,0.0003178,2]
[311238831,1704989460096,-502.53545522,0.0003178,2]
[311238832,1704989460106,-500.0,0.0003178,2]
[311238833,1704989460114,-500.0,0.0003178,2]
[311238834,1704989460123,-1805.23,0.0003178,2]
[311238835,1704989460133,-580.27801406,0.0003178,2]
[311238836,1704989460142,-500.0,0.0003178,2]
[311238837,1704989460151,-500.0,0.0003178,2]
[311238838,1704989460160,-429.10453152,0.0003178,2]
[311238839,1704989460169,-1149.22,0.0003178,2]
[311238840,1704989460182,-500.0,0.0003178,2]
[311238841,1704989460191,-503.00461226,0.0003178,2]
[311238842,1704989460201,-500.0,0.0003178,2]
[311238843,1704989460211,-500.0,0.0003178,2]
[311238844,1704989460221,-500.0,0.0003178,2]
[311238845,1704989460230,-500.0,0.0003178,2]
[311238846,1704989460240,-500.0,0.0003178,2]
[311238847,1704989460250,-500.0,0.0003178,2]
[311238848,1704989460260,-500.0,0.0003178,2]
[311238849,1704989460269,-791.83,0.0003178,2]
[311238850,1704989460278,-500.0,0.0003178,2]
[311238851,1704989460287,-503.6558925,0.0003178,2]
[311238852,1704989460296,-657.31,0.0003178,2]
[311238853,1704989460305,-630.89137763,0.0003178,2]
[311238854,1704989460314,-500.0,0.0003178,2]
[311238855,1704989460323,-500.0,0.0003178,2]
[311238856,1704989460332,-500.0,0.0003178,2]
[311238857,1704989460341,-500.0,0.0003178,2]
[311238858,1704989460350,-500.0,0.0003178,2]
[311238859,1704989460361,-851.22,0.0003178,2]
[311238860,1704989460370,-500.0,0.0003178,2]
[311238861,1704989460379,-500.0,0.0003178,2]
[311238862,1704989460388,-752.58,0.0003178,2]
[311238863,1704989460397,-500.0,0.0003178,2]
[311238864,1704989460406,-500.0,0.0003178,2]
[311238865,1704989460415,-515.56453955,0.0003178,2]
[311238866,1704989460427,-500.0,0.0003178,2]
[311238867,1704989460436,-500.0,0.0003178,2]
[311238868,1704989460445,-500.0,0.0003178,2]
[311238869,1704989460455,-506.25057059,0.0003178,2]
[311238870,1704989460464,-2622.01,0.0003178,2]
[311238871,1704989460473,-500.0,0.0003178,2]
[311238872,1704989460482,-500.0,0.0003178,2]
[311238873,1704989460492,-500.0,0.0003178,2]
[311238874,1704989460500,-3471.65,0.0003178,2]
[311238875,1704989460509,-1579.25,0.0003178,2]
[311238876,1704989460518,-500.0,0.0003178,2]
[311238877,1704989460528,-500.0,0.0003178,2]
[311238878,1704989460537,-500.0,0.0003178,2]
[311238879,1704989460546,-666.25,0.0003178,2]
[311238880,1704989460556,-824.38,0.0003178,2]
[311238881,1704989460565,-500.0,0.0003178,2]
[311238882,1704989460575,-1052.02,0.0003178,2]
[311238883,1704989460584,-500.0,0.0003178,2]
[311238884,1704989460602,-652.36,0.0003178,2]
[311238885,1704989460614,-500.0,0.0003178,2]
[311238886,1704989460623,-500.0,0.0003178,2]
[311238887,1704989460633,-500.0,0.0003178,2]
[311238888,1704989460643,-1048.31,0.0003178,2]
[311238889,1704989460652,-862.28,0.0003178,2]
[311238890,1704989460662,-10599.06,0.0003178,2]
[311238891,1704989460671,-1310.29,0.0003178,2]
[311238892,1704989460683,-500.0,0.0003178,2]
[311238893,1704989460692,-909.41,0.0003178,2]
[311238894,1704989460702,-2138.68,0.0003178,2]
[311238895,1704989460711,-500.0,0.0003178,2]
[311238896,1704989460720,-186.92796824,0.0003178,2]
[311238897,1704989460730,-500.0,0.0003178,2]
[311238898,1704989460740,-500.0,0.0003178,2]
[311238899,1704989460749,-500.0,0.0003178,2]
[311238900,1704989460759,-500.0,0.0003178,2]
[311238901,1704989460768,-462.09054725,0.0003178,2]
[311238902,1704989460778,-1044.05,0.0003178,2]
[311238903,1704989460788,-195.44382773,0.0003178,2]
[311238904,1704989460798,-500.0,0.0003178,2]
[311238905,1704989460808,-500.0,0.0003178,2]
[311238906,1704989460818,-500.0,0.0003178,2]
[311238907,1704989460828,-500.0,0.0003178,2]
[311238908,1704989460839,-500.0,0.0003178,2]
[311238909,1704989460849,-767.81,0.0003178,2]
[311238910,1704989460859,-2163.45,0.0003178,2]
[311238911,1704989460869,-3391.32,0.0003178,2]
[311238912,1704989460878,-5202.42041126,0.0003178,2]
[311238913,1704989460898,-4052.18050633,0.0003178,2]
[311238914,1704989461191,155.01550155,0.00012283,2]
[311238915,1704989461453,1466.31228556,0.00011075,2]
[311238916,1704989461640,6514.35345844,0.00011934,2]
[311238917,1704989473185,155.01550155,0.00012283,2]
[311238918,1704989474346,1466.31228556,0.00011999,2]
[311238919,1704989489167,155.01550155,0.00012283,2]
[311238920,1704989496159,1466.31228556,0.0001,2]
[311238923,1704989507173,202.00684182,0.00012283,2]
[311238926,1704989522263,1466.31228556,0.0001,2]
[311238927,1704989542161,1466.31228556,0.0001,2]
[311238929,1704989562171,1466.31228556,0.0001,2]
[311238932,1704989580168,1466.31228556,0.0001,2]
[311238933,1704989594399,3478.77785184,0.00012899,2]
[311238934,1704989596193,1466.31228556,0.0001,2]
[311238935,1704989612169,1466.31228556,0.0001,2]
[311238936,1704989630174,791.86440579,0.0001,2]
[311238939,1704989643550,-2652.49883384,0.00013054,2]
[311238940,1704989643576,-4789.41827786,0.00013054,2]
[311238941,1704989643602,-155.02325349,0.00013054,2]
[311238942,1704989643623,-2030.38673937,0.00013054,2]
[311238943,1704989643643,-170.50663149,0.00013054,2]
[311238944,1704989643664,-901.83243089,0.00013054,2]
[311238945,1704989643685,-521.43346448,0.00013055,2]